fUSD/lending_fUSD_20251110
["ID","MTS","AMOUNT","RATE_DAILY","PERIOD"]
[393553988,1762795844607,-500.0,0.00024899,2]
[393553989,1762795844617,-500.0,0.00024899,2]
[393553990,1762795844627,-500.0,0.00024899,2]
[393553991,1762795844636,-500.0,0.00024899,2]
[393553992,1762795844646,-500.0,0.00024899,2]
[393553993,1762795844655,-27426.01,0.000249,7]
[393553994,1762795844665,-151.0,0.000249,7]
[393553995,1762795844674,-151.0,0.000249,7]
[393553996,1762795844684,-151.0,0.000249,7]
[393553997,1762795844694,-151.0,0.000249,7]
[393553998,1762795844705,-235.516072,0.000249,7]
[393553999,1762795844715,-151.0,0.000249,7]
[393554000,1762795844724,-151.0,0.000249,7]
[393554001,1762795844734,-235.516072,0.000249,7]
[393554002,1762795844744,-151.0,0.000249,7]
[393554003,1762795844753,-235.516072,0.000249,7]
[393554004,1762795844763,-151.0,0.000249,7]
[393554005,1762795844772,-193.451634,0.000249,7]
[393554006,1762795844782,-235.516072,0.000249,7]
[393554007,1762795844971,-193.451634,0.000249,7]
[393554008,1762795845012,-151.0,0.000249,7]
[393554009,1762795845022,-151.0,0.000249,7]
[393554010,1762795845032,-193.451634,0.000249,7]
[393554011,1762795845041,-151.0,0.000249,7]
[393554012,1762795845052,-193.451634,0.000249,7]
[393554013,1762795845065,-151.0,0.000249,7]
[393554014,1762795845075,-161.636163,0.000249,7]
[393554015,1762795845084,-151.0,0.000249,7]
[393554016,1762795845093,-151.0,0.000249,7]
[393554017,1762795845103,-151.0,0.000249,7]
[393554018,1762795845113,-236.778444,0.000249,7]
[393554019,1762795845122,-151.0,0.000249,7]
[393554020,1762795845132,-151.0,0.000249,7]
[393554021,1762795845142,-156.444902,0.000249,7]
[393554022,1762795845151,-151.0,0.000249,7]
[393554023,1762795845161,-151.0,0.000249,7]
[393554024,1762795845170,-269.006095,0.000249,7]
[393554025,1762795845179,-269.006095,0.000249,7]
[393554026,1762795845188,-269.006095,0.000249,7]
[393554027,1762795845197,-269.006095,0.000249,7]
[393554028,1762795845206,-156.335043,0.000249,7]
[393554029,1762795845215,-162.539445,0.000249,7]
[393554030,1762795845225,-151.0,0.000249,7]
[393554031,1762795845234,-156.335043,0.000249,7]
[393554032,1762795845244,-156.335043,0.000249,7]
[393554033,1762795845253,-151.0,0.000249,7]
[393554034,1762795845263,-151.0,0.000249,7]
[393554035,1762795845272,-151.0,0.000249,7]
[393554036,1762795845281,-156.335043,0.000249,7]
[393554037,1762795845290,-151.0,0.000249,7]
[393554038,1762795845299,-151.0,0.000249,7]
[393554039,1762795845308,-151.0,0.000249,7]
[393554040,1762795845317,-151.0,0.000249,7]
[393554041,1762795845327,-151.0,0.000249,7]
[393554042,1762795845336,-531.780223,0.000249,7]
[393554043,1762795845345,-151.0,0.000249,7]
[393554044,1762795845355,-531.780223,0.000249,7]
[393554045,1762795845364,-151.0,0.000249,7]
[393554046,1762795845373,-416.545079,0.000249,7]
[393554047,1762795845382,-151.0,0.000249,7]
[393554048,1762795845392,-531.780223,0.000249,7]
[393554049,1762795845401,-234.323809,0.000249,7]
[393554050,1762795845411,-151.0,0.000249,7]
[393554051,1762795845420,-263.168349,0.000249,7]
[393554052,1762795845429,-156.857615,0.000249,7]
[393554053,1762795845438,-151.0,0.000249,7]
[393554055,1762795845447,-234.323809,0.000249,7]
[393554057,1762795845457,-151.0,0.000249,7]
[393554059,1762795845466,-151.0,0.000249,7]
[393554061,1762795845475,-513.65755,0.000249,7]
[393554062,1762795845485,-212.618371,0.000249,7]
[393554063,1762795845494,-263.168349,0.000249,7]
[393554064,1762795845503,-151.0,0.000249,7]
[393554065,1762795845512,-234.323809,0.000249,7]
[393554066,1762795845521,-416.545079,0.000249,7]
[393554067,1762795845530,-151.0,0.000249,7]
[393554068,1762795845539,-513.65755,0.000249,7]
[393554069,1762795845549,-263.168349,0.000249,7]
[393554070,1762795845558,-531.780223,0.000249,7]
[393554071,1762795845567,-212.618371,0.000249,7]
[393554072,1762795845576,-234.323809,0.000249,7]
[393554073,1762795845585,-151.0,0.000249,7]
[393554074,1762795845595,-513.65755,0.000249,7]
[393554075,1762795845605,-263.168349,0.000249,7]
[393554077,1762795845614,-416.545079,0.000249,7]
[393554079,1762795845625,-212.618371,0.000249,7]
[393554081,1762795845634,-513.65755,0.000249,7]
[393554082,1762795845644,-416.545079,0.000249,7]
[393554083,1762795845653,-151.0,0.000249,7]
[393554084,1762795845662,-212.618371,0.000249,7]
[393554085,1762795845672,-151.0,0.000249,7]
[393554086,1762795845681,-222.097129,0.000249,7]
[393554087,1762795845691,-151.0,0.000249,7]
[393554088,1762795845700,-222.097129,0.000249,7]
[393554089,1762795845710,-166.77421,0.000249,7]
[393554090,1762795845720,-222.097129,0.000249,7]
[393554091,1762795845730,-151.0,0.000249,7]
[393554092,1762795845739,-151.0,0.000249,7]
[393554093,1762795845748,-222.097129,0.000249,7]
[393554094,1762795845758,-151.0,0.000249,7]
[393554095,1762795845768,-151.0,0.000249,7]
[393554096,1762795845777,-151.0,0.000249,7]
[393554097,1762795845787,-151.0,0.000249,7]
[393554098,1762795845796,-151.0,0.000249,7]
[393554099,1762795845806,-151.0,0.000249,7]
[393554100,1762795845815,-153.503221,0.000249,7]
[393554101,1762795845825,-151.0,0.000249,7]
[393554102,1762795845834,-508217.95963281,0.000249,3]
[393554103,1762795845877,-1254.73255102,0.000249,3]
[393554104,1762795846141,-728.12,0.00019438,2]
[393554105,1762795846151,-728.12,0.00020116,2]
[393554106,1762795846160,-728.12,0.00020795,2]
[393554107,1762795846169,-151.0,0.00021918,7]
[393554108,1762795846179,-399.289723,0.00021918,7]
[393554109,1762795846188,-399.289723,0.00021918,7]
[393554110,1762795846197,-3464.47462021,0.000249,3]
[393554111,1762795846231,-614.42642,0.000249,3]
[393554112,1762795846242,-10463.67804648,0.000249,3]
[393554113,1762795846275,-15770.52425191,0.000249,3]
[393554119,1762795846704,500.0,0.00014999,2]
[393554120,1762795846719,-151.0,0.00015845,2]
[393554121,1762795846730,-222.40978053,0.000179,2]
[393554122,1762795846917,-399.289723,0.00021918,7]
[393554123,1762795846929,-7314.31049648,0.000249,3]
[393554124,1762795864832,500.0,0.00014999,2]
[393554125,1762795865084,500.0,0.00014999,2]
[393554126,1762795865325,500.0,0.00014999,2]
[393554127,1762795886182,-151.0,0.00016375,2]
[393554128,1762795886204,-33.538314,0.00016438,2]
[393554129,1762795886711,500.0,0.00014999,2]
[393554130,1762795886995,600.0,0.00014999,2]
[393554131,1762795890042,-154.22585616,0.00016438,2]
[393554132,1762795891156,500.0,0.00014999,2]
[393554133,1762795891202,500.0,0.00014999,2]
[393554134,1762795891247,500.0,0.00014999,2]
[393554135,1762795891287,500.0,0.00014999,2]
[393554136,1762795891329,70.73033269,0.00014999,2]
[393554137,1762795891356,474.46259044,0.00014999,2]
[393554138,1762795891421,500.0,0.00014999,2]
[393554139,1762795891466,500.0,0.00014999,2]
[393554140,1762795891536,500.0,0.00014999,2]
[393554141,1762795891776,500.0,0.00014999,2]
[393554142,1762795891823,500.0,0.00014999,2]
[393554143,1762795892661,500.0,0.00014999,2]
[393554144,1762795892743,500.0,0.00014999,2]
[393554145,1762795892974,-247.52854389,0.00016438,2]
[393554146,1762795906240,586.29271422,0.00014999,2]
[393554147,1762795936287,500.0,0.00014999,2]
[393554148,1762795936585,500.0,0.00014999,2]
[393554149,1762795936807,500.0,0.00014999,2]
[393554150,1762795949336,500.0,0.00014999,2]
[393554151,1762795949566,500.0,0.00014999,2]
[393554152,1762795949854,500.0,0.00014999,2]
[393554153,1762795951422,155.80283953,0.00014999,2]
[393554154,1762795955785,-9.35743085,0.00016438,2]
[393554155,1762795955812,-186.72,0.00016712,2]
[393554156,1762795955841,-300.0,0.00017137,2]
[393554157,1762795955870,-500.0,0.00017899,2]
[393554158,1762795955898,-503.47993958,0.00017899,2]
[393554159,1762795955926,-500.0,0.00017899,2]
[393554160,1762795955956,-500.0,0.00017999,2]
[393554161,1762795955991,-500.0,0.00017999,2]
[393554162,1762795956020,-500.0,0.00017999,2]
[393554163,1762795956048,-500.0,0.00017999,2]
[393554164,1762795956084,-500.0,0.00017999,2]
[393554165,1762795956120,-500.0,0.00017999,2]
[393554166,1762795961711,-500.0,0.00017999,2]
[393554167,1762795961738,-500.0,0.00017999,2]
[393554168,1762795961765,-500.0,0.00017999,2]
[393554169,1762795961792,-500.0,0.00017999,2]
[393554170,1762795961820,-500.0,0.00017999,2]
[393554171,1762795961847,-619.31996499,0.00017999,2]
[393554172,1762795961876,-300.0,0.00017999,2]
[393554173,1762795961905,-500.0,0.00017999,2]
[393554174,1762795961934,-500.0,0.00017999,2]
[393554175,1762795961963,-500.0,0.00017999,2]
[393554176,1762795967741,-1200.0,0.00017998,2]
[393554177,1762795967770,-500.0,0.00017999,2]
[393554178,1762795967798,-500.0,0.00017999,2]
[393554179,1762795967826,-500.0,0.00017999,2]
[393554180,1762795967855,-500.0,0.00017999,2]
[393554181,1762795967883,-500.0,0.00017999,2]
[393554182,1762795967911,-500.0,0.00017999,2]
[393554183,1762795967940,-308.3373714,0.00017999,2]
[393554210,1762796018457,170.0,8.3e-07,2]
[393554212,1762796046328,-151.0,0.00017521,2]
[393554213,1762796048950,151.0,0.00017356,2]
[393554214,1762796059352,500.0,0.00014999,2]
[393554215,1762796059623,205.87972136,0.00014999,2]
[393554217,1762796076378,-151.0,0.0001785,2]
[393554218,1762796082900,151.0,0.00017637,2]
[393554219,1762796106700,-151.0,0.00017943,2]
[393554220,1762796110915,500.0,0.00014999,2]
[393554221,1762796111240,500.0,0.00014999,2]
[393554222,1762796111477,500.0,0.00014999,2]
[393554223,1762796111589,319.0,0.00022841,120]
[393554224,1762796111715,588.74165764,0.00017899,2]
[393554225,1762796112910,319.0,0.00023983,120]
[393554226,1762796114187,319.0,0.00025182,120]
[393554227,1762796115461,319.0,0.00026441,120]
[393554228,1762796116729,319.0,0.00027763,120]
[393554229,1762796117993,319.0,0.00029151,120]
[393554230,1762796140324,550.61656602,0.00014999,2]
[393554231,1762796151943,-300.0,0.00017999,2]
[393554232,1762796165445,859.02065317,0.00017913,2]
[393554234,1762796209103,-192.88209947,0.00014999,2]
[393554236,1762796212428,-409.20659611,0.00014999,2]
[393554237,1762796213068,-39.20853995,0.00014999,2]
[393554238,1762796228030,-151.0,0.00017717,2]
[393554239,1762796257655,166.66,0.00021953,30]
[393554240,1762796267341,151.0,0.00017633,2]
[393554242,1762796303905,500.0,0.00014999,2]
[393554243,1762796334223,500.0,0.00014999,2]
[393554244,1762796341284,246.0,0.00017383,2]
[393554245,1762796344719,246.0,0.00017363,2]
[393554246,1762796346190,-195.0,0.00017865,2]
[393554247,1762796346212,-4.11318271,0.00017902,2]
[393554248,1762796348094,-261.87453195,0.00017902,2]
[393554249,1762796348711,-34.01228534,0.00017902,2]
[393554250,1762796351743,-151.83275383,0.00017939,2]
[393554251,1762796351790,246.0,0.00017534,2]
[393554252,1762796356621,500.0,0.00014999,2]
[393554253,1762796356678,500.0,0.00014999,2]
[393554254,1762796356859,500.0,0.00014999,2]
[393554255,1762796359557,246.0,0.00017731,2]
[393554256,1762796362951,246.0,0.00017314,2]
[393554257,1762796363703,-148.16724617,0.00017939,2]
[393554258,1762796369750,246.0,0.00017849,2]
[393554259,1762796374104,246.0,0.00017562,2]
[393554260,1762796377696,246.0,0.00017371,2]
[393554261,1762796380922,246.0,0.00017893,2]
[393554262,1762796388102,413.78133242,0.00014999,2]
[393554263,1762796391748,246.0,0.00017921,2]
[393554264,1762796398897,246.0,0.00017617,2]
[393554265,1762796405386,246.0,0.00017169,2]
[393554266,1762796406561,160.0,0.00026089,120]
[393554267,1762796407960,160.0,0.00027394,120]
[393554268,1762796409517,160.0,0.00028764,120]
[393554269,1762796446702,500.0,0.00014999,2]
[393554270,1762796446932,500.0,0.00014999,2]
[393554271,1762796447165,500.0,0.00014999,2]
[393554272,1762796447401,307.45218061,0.00017899,2]
[393554273,1762796460320,500.0,0.00014999,2]
[393554274,1762796460562,500.0,0.00014999,2]
[393554275,1762796460807,500.0,0.00014999,2]
[393554276,1762796461045,538.08323017,0.00017899,2]
[393554278,1762796620865,293.0,0.00017322,2]
[393554279,1762796633925,293.0,0.00017928,2]
[393554280,1762796638191,293.0,0.00017113,2]
[393554281,1762796645031,293.0,0.00017618,2]
[393554282,1762796648429,293.0,0.00017432,2]
[393554283,1762796677869,250.0,0.00017,2]
[393554284,1762796704264,163.0,0.00026441,120]
[393554285,1762796825493,200.0,0.00017966,2]
[393554286,1762796825545,151.0,0.00017966,2]
[393554287,1762796826138,409.72033143,0.00017966,2]
[393554288,1762796826175,151.0,0.00017966,2]
[393554289,1762796826716,322.6107,0.00017966,2]
[393554290,1762796826758,151.0,0.00017966,2]
[393554291,1762796827357,151.0,0.00017966,2]
[393554292,1762796827968,151.0,0.00017966,2]
[393554293,1762796828387,200.0,0.00017966,2]
[393554294,1762796828590,151.0,0.00017966,2]
[393554298,1762796829168,400.31009864,0.00017966,2]
[393554301,1762796829208,151.0,0.00017966,2]
[393554302,1762796829784,151.0,0.00017966,2]
[393554303,1762796830408,151.0,0.00017966,2]
[393554304,1762796831015,151.0,0.00017966,2]
[393554305,1762796831145,151.0,0.00017966,2]
[393554306,1762796831851,151.0,0.00017966,2]
[393554307,1762796831892,151.0,0.00017966,2]
[393554308,1762796832139,200.0,0.00017966,2]
[393554309,1762796832196,151.0,0.00017966,2]
[393554310,1762796832222,250.0,0.00017966,2]
[393554311,1762796832338,151.0,0.00017966,2]
[393554312,1762796832830,250.0,0.00017966,2]
[393554313,1762796832948,151.0,0.00017966,2]
[393554314,1762796833259,151.0,0.00017966,2]
[393554315,1762796833454,250.0,0.00017966,2]
[393554316,1762796833576,151.0,0.00017966,2]
[393554317,1762796833887,151.0,0.00017966,2]
[393554318,1762796834172,250.0,0.00017966,2]
[393554319,1762796834208,151.0,0.00017966,2]
[393554320,1762796834491,151.0,0.00017966,2]
[393554321,1762796834805,250.0,0.00017966,2]
[393554322,1762796834844,151.0,0.00017966,2]
[393554323,1762796835084,151.0,0.00017966,2]
[393554324,1762796835389,250.0,0.00017966,2]
[393554325,1762796835417,151.0,0.00017966,2]
[393554326,1762796835696,151.0,0.00017966,2]
[393554327,1762796835990,250.0,0.00017966,2]
[393554328,1762796836019,151.0,0.00017966,2]
[393554329,1762796836302,151.0,0.00017966,2]
[393554330,1762796836575,250.0,0.00017966,2]
[393554331,1762796836896,151.0,0.00017966,2]
[393554332,1762796837089,151.0,0.00017966,2]
[393554333,1762796837212,250.0,0.00017966,2]
[393554334,1762796837492,151.0,0.00017966,2]
[393554335,1762796837678,151.0,0.00017966,2]
[393554336,1762796837838,250.0,0.00017966,2]
[393554337,1762796838429,250.0,0.00017966,2]
[393554338,1762796838938,-250.0,0.00017966,2]
[393554339,1762796840407,151.0,0.00017966,2]
[393554340,1762796841001,151.0,0.00017966,2]
[393554341,1762796841270,250.0,0.00017966,2]
[393554342,1762796841596,151.0,0.00017966,2]
[393554343,1762796842411,250.0,0.00017966,2]
[393554344,1762796842504,151.0,0.00017966,2]
[393554345,1762796842579,250.0,0.00017966,2]
[393554346,1762796842813,245.09355093,0.00017966,2]
[393554347,1762796843080,250.0,0.00017966,2]
[393554348,1762796843677,250.0,0.00017966,2]
[393554349,1762796844282,250.0,0.00017966,2]
[393554350,1762796844839,151.0,0.00017966,2]
[393554351,1762796844888,250.0,0.00017966,2]
[393554352,1762796845446,151.0,0.00017966,2]
[393554353,1762796845962,250.0,0.00017966,2]
[393554354,1762796846020,277.35679052,0.00017966,2]
[393554355,1762796846074,151.0,0.00017966,2]
[393554356,1762796846599,250.0,0.00017966,2]
[393554357,1762796846794,151.0,0.00017966,2]
[393554358,1762796847216,250.0,0.00017966,2]
[393554359,1762796847420,151.0,0.00017966,2]
[393554360,1762796847846,250.0,0.00017966,2]
[393554361,1762796848028,151.0,0.00017966,2]
[393554362,1762796848657,151.0,0.00017966,2]
[393554363,1762796849261,151.0,0.00017966,2]
[393554364,1762796849915,151.0,0.00017966,2]
[393554365,1762796850544,151.0,0.00017966,2]
[393554366,1762796851187,151.0,0.00017966,2]
[393554367,1762796857396,250.0,0.00017966,2]
[393554368,1762796858003,250.0,0.00017966,2]
[393554369,1762796858605,250.0,0.00017966,2]
[393554370,1762796859202,250.0,0.00017966,2]
[393554371,1762796859788,250.0,0.00017966,2]
[393554372,1762796860405,250.0,0.00017966,2]
[393554373,1762796861013,250.0,0.00017966,2]
[393554374,1762796861231,151.0,0.00017966,2]
[393554375,1762796861839,151.0,0.00017966,2]
[393554376,1762796862301,250.0,0.00017966,2]
[393554377,1762796862501,151.0,0.00017966,2]
[393554378,1762796862725,250.0,0.00017966,2]
[393554379,1762796863541,151.0,0.00017966,2]
[393554380,1762796863596,250.0,0.00017966,2]
[393554381,1762796863752,151.0,0.00017966,2]
[393554382,1762796863939,250.0,0.00017966,2]
[393554383,1762796864582,151.0,0.00017966,2]
[393554384,1762796864632,250.0,0.00017966,2]
[393554385,1762796865236,56.55965855,0.00017966,2]
[393554386,1762796865259,94.44034145,0.00017966,2]
[393554387,1762796865291,250.0,0.00017966,2]
[393554388,1762796865852,250.0,0.00017966,2]
[393554389,1762796866469,250.0,0.00017966,2]
[393554390,1762796867055,250.0,0.00017966,2]
[393554391,1762796868135,250.0,0.00017966,2]
[393554392,1762796868783,250.0,0.00017966,2]
[393554393,1762796869431,250.0,0.00017966,2]
[393554394,1762796870050,250.0,0.00017966,2]
[393554395,1762796870653,250.0,0.00017966,2]
[393554396,1762796871279,250.0,0.00017966,2]
[393554397,1762796878082,314.04628242,0.00017966,2]
[393554398,1762796880862,151.0,0.00017966,2]
[393554399,1762796921132,500.0,0.00017866,2]
[393554404,1762797020590,200.0,0.00017421,2]
[393554423,1762797031855,-195.0,0.00017966,2]
[393554425,1762797031865,-250.0,0.00017966,2]
[393554427,1762797031875,-300.0,0.00017966,2]
[393554429,1762797031884,-195.0,0.00017966,2]
[393554431,1762797031897,-250.0,0.00017966,2]
[393554433,1762797031907,-300.0,0.00017967,2]
[393554435,1762797031917,-95.10498767,0.00017998,2]
[393554437,1762797031929,-1104.89501233,0.00017998,2]
[393554440,1762797031939,-314.04628242,0.00017999,2]
[393554442,1762797031950,-300.0,0.00017999,2]
[393554444,1762797031959,-152.54461281,0.00017999,2]
[393554446,1762797031975,-147.45538719,0.00017999,2]
[393554448,1762797031984,-300.0,0.00017999,2]
[393554450,1762797031994,-300.0,0.00017999,2]
[393554452,1762797032003,-300.0,0.00017999,2]
[393554454,1762797032013,-300.0,0.00018011,2]
[393554457,1762797032023,-300.0,0.00018011,2]
[393554459,1762797032032,-314.04628242,0.00018012,2]
[393554460,1762797032041,-271.65798318,0.00018024,2]
[393554462,1762797032052,-21.34201682,0.00018024,2]
[393554463,1762797032062,-293.0,0.0001806,2]
[393554465,1762797032071,-246.0,0.00018071,2]
[393554467,1762797032080,-293.0,0.00018109,2]
[393554469,1762797032093,-246.0,0.00018166,2]
[393554470,1762797032103,-246.0,0.00018216,2]
[393554472,1762797032112,-246.0,0.00018241,2]
[393554473,1762797032121,-246.0,0.00018295,2]
[393554475,1762797032131,-293.0,0.00018353,2]
[393554476,1762797032140,-246.0,0.00018464,2]
[393554478,1762797032149,-293.0,0.00018504,2]
[393554480,1762797032159,-200.0,0.00018514,2]
[393554481,1762797032168,-200.0,0.00018514,2]
[393554483,1762797032178,-372.0,0.00018519,2]
[393554484,1762797032187,-293.0,0.0001852,2]
[393554486,1762797032196,-550.0,0.0001852,2]
[393554488,1762797032207,-246.0,0.00018584,2]
[393554490,1762797032217,-293.0,0.00018627,2]
[393554491,1762797032226,-246.0,0.00018653,2]
[393554494,1762797032237,-246.0,0.00018739,2]
[393554497,1762797032246,-246.0,0.00018813,2]
[393554499,1762797032256,-246.0,0.00018825,2]
[393554500,1762797032265,-246.0,0.00018888,2]
[393554502,1762797032275,-2000.0,0.000189,2]
[393554504,1762797032288,-180.0,0.00018925,2]
[393554505,1762797032298,-500.0,0.00018937,2]
[393554507,1762797032308,-500.0,0.00018999,2]
[393554509,1762797032318,-300.0,0.00018999,2]
[393554511,1762797032327,-300.0,0.00018999,2]
[393554512,1762797032337,-300.0,0.00018999,2]
[393554515,1762797032346,-300.0,0.00019,2]
[393554518,1762797032356,-500.85171979,0.00019033,2]
[393554519,1762797032365,-2174.5594,0.00019041,2]
[393554521,1762797032375,-500.0,0.00019055,2]
[393554523,1762797032385,-249.0,0.00019062,2]
[393554524,1762797032394,-1000.0,0.0001913,2]
[393554526,1762797032404,-1000.0,0.0001913,2]
[393554527,1762797032413,-1000.0,0.0001913,2]
[393554528,1762797032423,-1000.0,0.0001913,2]
[393554529,1762797032432,-286.9,0.0001913,2]
[393554531,1762797032442,-334.5472959,0.00019335,2]
[393554534,1762797032456,-287.61899177,0.00019335,2]
[393554536,1762797032466,-151.0,0.00019335,2]
[393554538,1762797032476,-1003.58550355,0.00019602,2]
[393554540,1762797032486,-1200.0,0.00019734,2]
[393554542,1762797032498,-300.0,0.00019762,2]
[393554544,1762797032507,-195.0,0.00019762,2]
[393554546,1762797032516,-195.0,0.00019762,2]
[393554548,1762797032525,-250.0,0.00019762,2]
[393554550,1762797032536,-195.0,0.00019762,2]
[393554552,1762797032545,-1852.42,0.00020013,2]
[393554554,1762797032555,-476.35154829,0.0002015,2]
[393554606,1762797033194,-50.87733027,0.0002015,2]
[393554607,1762797033205,-2247.85,0.00020171,2]
[393554608,1762797033215,-504.75986535,0.0002025,2]
[393554609,1762797033224,-524.61822093,0.00020283,2]
[393554610,1762797033239,-1000.0,0.00020344,2]
[393554611,1762797033249,-166.66,0.00020649,2]
[393554612,1762797033260,-346.92554585,0.00020704,2]
[393554613,1762797033271,-298.26089446,0.00020704,2]
[393554614,1762797033281,-151.0,0.00020704,2]
[393554615,1762797033291,-207.4,0.00020705,2]
[393554616,1762797033302,-1691.009,0.00020728,2]
[393554617,1762797033312,-350.0,0.00021,2]
[393554618,1762797033321,-166.66,0.00021083,2]
[393554619,1762797033331,-1000.0,0.00021498,2]
[393554620,1762797033341,-300.0,0.00021499,2]
[393554621,1762797033350,-300.0,0.00021499,2]
[393554622,1762797033361,-420.95721786,0.00021499,2]
[393554623,1762797033371,-166.66,0.00021518,2]
[393554624,1762797033381,-263.0,0.00021794,2]
[393554625,1762797033392,-184.04,0.00021918,2]
[393554626,1762797033404,-429.21089253,0.00021999,2]
[393554627,1762797033414,-359.76179104,0.00022073,2]
[393554628,1762797033423,-309.29654756,0.00022073,2]
[393554629,1762797033433,-151.0,0.00022073,2]
[393554630,1762797033443,-184.04,0.00022192,2]
[393554631,1762797033457,-166.66,0.00022387,30]
[393554632,1762797033469,-527.22887854,0.00022407,2]
[393554633,1762797033479,-509.3844798,0.00022459,2]
[393554634,1762797033488,-184.06,0.00022466,2]
[393554635,1762797033498,-17124.0,0.000225,2]
[393554636,1762797033508,-8958.33,0.00022536,2]
[393554637,1762797033518,-500.0,0.0002256,2]
[393554638,1762797033531,-2000.0,0.000226,2]
[393554639,1762797033541,-166.66,0.00022822,30]
[393554640,1762797033551,-1000.0,0.00022887,2]
[393554641,1762797033561,-1711.18,0.00022932,2]
[393554642,1762797033570,-5516.0,0.00023,3]
[393554643,1762797033580,-373.07297731,0.00023442,2]
[393554644,1762797033590,-320.74051982,0.00023442,2]
[393554645,1762797033599,-151.0,0.00023442,2]
[393554646,1762797033608,-215.0738,0.00023444,2]
[393554647,1762797033618,-2489.62339834,0.000235,5]
[393554648,1762797033635,-1082.68320992,0.000235,5]
[393554649,1762797033662,-207.05534795,0.00019579,2]
[393554650,1762797033672,-500.0,0.00019579,2]
[393554651,1762797033682,-1943.69339174,0.000235,5]
[393554652,1762797033692,-212.18083063,0.00024197,2]
[393554653,1762797033703,-893.79653187,0.00024418,2]
[393554654,1762797033712,-1000.0,0.00024487,2]
[393554655,1762797033723,-1421.0,0.00024558,2]
[393554656,1762797033732,-212.18083064,0.00024567,2]
[393554657,1762797033742,-300.0,0.00024625,2]
[393554658,1762797033751,-300.0,0.00024633,2]
[393554659,1762797033761,-300.0,0.00024646,2]
[393554660,1762797033771,-300.0,0.00024651,2]
[393554661,1762797033781,-300.0,0.00024661,2]
[393554662,1762797033790,-300.0,0.00024662,2]
[393554663,1762797033801,-7129.1896791,0.00024663,2]
[393554664,1762797033811,-340.5192715,0.00024664,2]
[393554665,1762797033821,-746.64673021,0.00024664,2]
[393554666,1762797033830,-527.22887854,0.00024664,2]
[393554667,1762797033840,-2500.0,0.00024664,2]
[393554668,1762797033850,-300.0,0.00024668,2]
[393554669,1762797033860,-300.0,0.00024681,2]
[393554670,1762797033869,-1494.23967867,0.00024682,10]